[Event "Titled Tuesday Blitz May 23 Late 2023"]
[White "Baskakov, Egor"]
[Black "Korchmar, Vasiliy"]
[WhiteFideId "24197866"]
[BlackFideId "24131750"]
[WhiteElo "2225"]
[BlackElo "2370"]
[Result "1/2-1/2"]
[Round "09"]
[TimeControl "180+2"]
[Date "2023.05.23"]
[WhiteClock "0:00:07"]
[BlackClock "0:00:04"]

1. e4 {[%clk 0:03:00]}  c5 {[%clk 0:02:56]} 2. Nf3 {[%clk 0:03:00]}  d6 {[%clk 0:02:56]} 3. d4 {[%clk 0:03:00]}  cxd4 {[%clk 0:02:57]} 4. Nxd4 {[%clk 0:03:00]}  Nf6 {[%clk 0:02:57]} 5. Nc3 {[%clk 0:03:00]}  Nc6 {[%clk 0:02:58]} 6. g3 {[%clk 0:02:58]}  g6 {[%clk 0:02:58]} 7. Nde2 {[%clk 0:02:57]}  Bg7 {[%clk 0:02:56]} 8. Bg2 {[%clk 0:02:57]}  O-O {[%clk 0:02:57]} 9. h3 {[%clk 0:02:58]}  Bd7 {[%clk 0:02:57]} 10. O-O {[%clk 0:02:58]}  Rb8 {[%clk 0:02:57]} 11. a4 {[%clk 0:02:57]}  a6 {[%clk 0:02:57]} 12. Be3 {[%clk 0:02:58]}  b5 {[%clk 0:02:58]} 13. axb5 {[%clk 0:02:58]}  axb5 {[%clk 0:02:58]} 14. Nd5 {[%clk 0:02:59]}  e6 {[%clk 0:02:42]} 15. Nxf6+ {[%clk 0:02:58]}  Bxf6 {[%clk 0:02:43]} 16. Nd4 {[%clk 0:02:43]}  Ne5 {[%clk 0:02:38]} 17. b3 {[%clk 0:02:42]}  Qc7 {[%clk 0:02:31]} 18. Qd2 {[%clk 0:02:28]}  Rfc8 {[%clk 0:02:26]} 19. Ra6 {[%clk 0:02:26]}  b4 {[%clk 0:02:18]} 20. Rfa1 {[%clk 0:02:22]}  Nc6 {[%clk 0:02:16]} 21. Nxc6 {[%clk 0:02:15]}  Bxc6 {[%clk 0:02:16]} 22. R1a2 {[%clk 0:02:01]}  Bc3 {[%clk 0:02:09]} 23. Qd1 {[%clk 0:01:57]}  Ra8 {[%clk 0:01:49]} 24. Ra7 {[%clk 0:01:54]}  Bb7 {[%clk 0:01:39]} 25. Qe2 {[%clk 0:01:45]}  Rxa7 {[%clk 0:01:29]} 26. Rxa7 {[%clk 0:01:46]}  Ra8 {[%clk 0:01:29]} 27. Rxa8+ {[%clk 0:01:44]}  Bxa8 {[%clk 0:01:29]} 28. Qb5 {[%clk 0:01:40]}  Bc6 {[%clk 0:01:29]} 29. Qa6 {[%clk 0:01:37]}  Qb7 {[%clk 0:01:18]} 30. Qd3 {[%clk 0:01:30]}  d5 {[%clk 0:00:30]} 31. exd5 {[%clk 0:01:29]}  Bxd5 {[%clk 0:00:31]} 32. Bxd5 {[%clk 0:01:28]}  exd5 {[%clk 0:00:31]} 33. h4 {[%clk 0:01:17]}  h5 {[%clk 0:00:31]} 34. Bd4 {[%clk 0:01:13]}  Bxd4 {[%clk 0:00:21]} 35. Qxd4 {[%clk 0:01:14]}  Qc6 {[%clk 0:00:22]} 36. Qxb4 {[%clk 0:01:01]}  Qxc2 {[%clk 0:00:22]} 37. Qb8+ {[%clk 0:01:01]}  Kh7 {[%clk 0:00:22]} 38. Qb7 {[%clk 0:01:00]}  Qb1+ {[%clk 0:00:21]} 39. Kh2 {[%clk 0:00:59]}  Qf5 {[%clk 0:00:21]} 40. Qb6 {[%clk 0:00:55]}  Qe5 {[%clk 0:00:13]} 41. b4 {[%clk 0:00:51]}  d4 {[%clk 0:00:14]} 42. Qa6 {[%clk 0:00:46]}  Qf5 {[%clk 0:00:12]} 43. Qe2 {[%clk 0:00:40]}  d3 {[%clk 0:00:12]} 44. Qd2 {[%clk 0:00:38]}  Qf3 {[%clk 0:00:09]} 45. b5 {[%clk 0:00:21]}  Qe2 {[%clk 0:00:09]} 46. Qf4 {[%clk 0:00:21]}  Kg7 {[%clk 0:00:01]} 47. Qd4+ {[%clk 0:00:20]}  Kh7 {[%clk 0:00:01]} 48. b6 {[%clk 0:00:15]}  d2 {[%clk 0:00:01]} 49. b7 {[%clk 0:00:16]}  d1=Q {[%clk 0:00:01]} 50. Qxd1 {[%clk 0:00:16]}  Qxd1 {[%clk 0:00:02]} 51. b8=Q {[%clk 0:00:17]}  Qd5 {[%clk 0:00:02]} 52. Qf4 {[%clk 0:00:16]}  Qe6 {[%clk 0:00:03]} 53. Kg1 {[%clk 0:00:15]}  Kg7 {[%clk 0:00:03]} 54. Qd4+ {[%clk 0:00:15]}  Qf6 {[%clk 0:00:04]} 55. Qd1 {[%clk 0:00:16]}  Qe5 {[%clk 0:00:04]} 56. Qf3 {[%clk 0:00:14]}  Qf6 {[%clk 0:00:04]} 57. Qb7 {[%clk 0:00:14]}  Qa1+ {[%clk 0:00:04]} 58. Kg2 {[%clk 0:00:14]}  Qe5 {[%clk 0:00:05]} 59. Qb3 {[%clk 0:00:12]}  Qd4 {[%clk 0:00:05]} 60. Qa2 {[%clk 0:00:09]}  Qc3 {[%clk 0:00:05]} 61. f3 {[%clk 0:00:09]}  Qd4 {[%clk 0:00:05]} 62. Qe2 {[%clk 0:00:09]}  Qc3 {[%clk 0:00:05]} 63. g4 {[%clk 0:00:07]}  hxg4 {[%clk 0:00:03]} 64. fxg4 {[%clk 0:00:08]}  Qc6+ {[%clk 0:00:04]} 65. Kg3 {[%clk 0:00:08]}  Qd6+ {[%clk 0:00:04]} 66. Kh3 {[%clk 0:00:08]}  Qa3+ {[%clk 0:00:04]} 67. Kg2 {[%clk 0:00:08]}  Qc3 {[%clk 0:00:04]} 68. Qe4 {[%clk 0:00:08]}  Qb2+ {[%clk 0:00:04]} 69. Kf3 {[%clk 0:00:08]}  Qc3+ {[%clk 0:00:04]} 70. Kf4 {[%clk 0:00:07]}  Qf6+ {[%clk 0:00:04]} 71. Kg3 {[%clk 0:00:07]}  Qc3+ {[%clk 0:00:04]} 72. Kg2 {[%clk 0:00:07]}  Qb2+ {[%clk 0:00:04]} 73. Kg3 {[%clk 0:00:07]}  Qc3+ {[%clk 0:00:05]} 74. Qf3 {[%clk 0:00:07]}  Qe5+ {[%clk 0:00:05]} 75. Qf4 {[%clk 0:00:07]}  Qc3+ {[%clk 0:00:05]} 76. Kg2 {[%clk 0:00:07]}  Qb2+ {[%clk 0:00:05]} 77. Qf2 {[%clk 0:00:06]}  Qe5 {[%clk 0:00:04]} 78. Qg3 {[%clk 0:00:07]}  Qb2+ {[%clk 0:00:03]} 79. Kh3 {[%clk 0:00:07]}  Qa1 {[%clk 0:00:03]} 80. Kg2 {[%clk 0:00:06]}  Qb2+ {[%clk 0:00:03]} 81. Kh3 {[%clk 0:00:07]}  Qa1 {[%clk 0:00:04]} 82. Kg2 {[%clk 0:00:07]}  Qb2+ {[%clk 0:00:04]} 1/2-1/2


[Site "https://www.chess.com"]

[Event "Titled Tuesday Blitz May 23 Late 2023"]
[White "Licznerski, Lukasz"]
[Black "Adla, Diego"]
[WhiteFideId "1179250"]
[BlackFideId "100072"]
[WhiteElo "2453"]
[BlackElo "2377"]
[Result "1-0"]
[Round "09"]
[TimeControl "180+2"]
[Date "2023.05.23"]
[WhiteClock "0:00:46"]
[BlackClock "0:00:57"]

1. e4 {[%clk 0:03:00]}  e5 {[%clk 0:02:59]} 2. Nc3 {[%clk 0:02:59]}  Nf6 {[%clk 0:02:59]} 3. g3 {[%clk 0:02:58]}  Bc5 {[%clk 0:02:57]} 4. Bg2 {[%clk 0:02:58]}  d6 {[%clk 0:02:54]} 5. h3 {[%clk 0:02:53]}  a6 {[%clk 0:02:50]} 6. Nge2 {[%clk 0:02:52]}  Nc6 {[%clk 0:02:47]} 7. d3 {[%clk 0:02:51]}  h6 {[%clk 0:02:44]} 8. O-O {[%clk 0:02:51]}  O-O {[%clk 0:02:39]} 9. Kh2 {[%clk 0:02:51]}  b5 {[%clk 0:02:30]} 10. a3 {[%clk 0:02:39]}  Nd4 {[%clk 0:02:22]} 11. f4 {[%clk 0:02:38]}  Nxe2 {[%clk 0:02:17]} 12. Qxe2 {[%clk 0:02:35]}  c6 {[%clk 0:02:13]} 13. Be3 {[%clk 0:02:26]}  Bxe3 {[%clk 0:02:07]} 14. Qxe3 {[%clk 0:02:26]}  a5 {[%clk 0:02:08]} 15. fxe5 {[%clk 0:02:10]}  dxe5 {[%clk 0:02:09]} 16. Qc5 {[%clk 0:02:10]}  Qe8 {[%clk 0:02:03]} 17. Nd1 {[%clk 0:01:53]}  Ra6 {[%clk 0:02:02]} 18. Ne3 {[%clk 0:01:51]}  Nd7 {[%clk 0:02:02]} 19. Qc3 {[%clk 0:01:48]}  Qe7 {[%clk 0:02:01]} 20. Nf5 {[%clk 0:01:46]}  Qc5 {[%clk 0:02:00]} 21. Qxc5 {[%clk 0:01:41]}  Nxc5 {[%clk 0:02:00]} 22. Ne7+ {[%clk 0:01:41]}  Kh7 {[%clk 0:01:58]} 23. Nxc8 {[%clk 0:01:42]}  Rxc8 {[%clk 0:01:53]} 24. Rxf7 {[%clk 0:01:42]}  b4 {[%clk 0:01:47]} 25. axb4 {[%clk 0:01:36]}  axb4 {[%clk 0:01:48]} 26. Rxa6 {[%clk 0:01:36]}  Nxa6 {[%clk 0:01:48]} 27. b3 {[%clk 0:01:03]}  Kg6 {[%clk 0:01:18]} 28. Ra7 {[%clk 0:01:03]}  Nc5 {[%clk 0:01:17]} 29. Ra5 {[%clk 0:01:03]}  Ne6 {[%clk 0:01:15]} 30. Rxe5 {[%clk 0:00:58]}  Nd4 {[%clk 0:01:16]} 31. Rc5 {[%clk 0:00:57]}  Kf6 {[%clk 0:01:11]} 32. h4 {[%clk 0:00:55]}  Ke6 {[%clk 0:01:11]} 33. Bh3+ {[%clk 0:00:54]}  Kd6 {[%clk 0:01:11]} 34. Rc4 {[%clk 0:00:50]}  Ne6 {[%clk 0:00:57]} 35. d4 {[%clk 0:00:46]} 1-0


[Site "https://www.chess.com"]

[Event "Titled Tuesday Blitz May 23 Late 2023"]
[White "Panesar Vedant"]
[Black "Filgueira, Hernan"]
[WhiteFideId "35033018"]
[BlackFideId "101770"]
[WhiteElo "2347"]
[BlackElo "2363"]
[Result "1-0"]
[Round "09"]
[TimeControl "180+2"]
[Date "2023.05.23"]
[WhiteClock "0:01:36"]
[BlackClock "0:00:01"]

1. e4 {[%clk 0:03:00]}  d6 {[%clk 0:02:57]} 2. d4 {[%clk 0:02:57]}  Nf6 {[%clk 0:02:58]} 3. Nc3 {[%clk 0:02:58]}  e5 {[%clk 0:02:56]} 4. dxe5 {[%clk 0:02:57]}  dxe5 {[%clk 0:02:55]} 5. Qxd8+ {[%clk 0:02:58]}  Kxd8 {[%clk 0:02:55]} 6. Bc4 {[%clk 0:02:59]}  Ke8 {[%clk 0:02:53]} 7. Nf3 {[%clk 0:02:56]}  Bd6 {[%clk 0:02:48]} 8. Bg5 {[%clk 0:02:52]}  Nbd7 {[%clk 0:02:46]} 9. O-O-O {[%clk 0:02:52]}  a6 {[%clk 0:02:46]} 10. Rhe1 {[%clk 0:02:49]}  h6 {[%clk 0:02:40]} 11. Bh4 {[%clk 0:02:49]}  Rb8 {[%clk 0:02:10]} 12. Nd5 {[%clk 0:02:47]}  Nxd5 {[%clk 0:01:56]} 13. Bxd5 {[%clk 0:02:48]}  f6 {[%clk 0:01:51]} 14. Nd2 {[%clk 0:02:44]}  Nb6 {[%clk 0:01:50]} 15. Bb3 {[%clk 0:02:42]}  Ke7 {[%clk 0:01:45]} 16. f3 {[%clk 0:02:43]}  Be6 {[%clk 0:01:44]} 17. Bf2 {[%clk 0:02:43]}  Nd7 {[%clk 0:01:35]} 18. Bxe6 {[%clk 0:02:42]}  Kxe6 {[%clk 0:01:34]} 19. Nc4 {[%clk 0:02:43]}  Rhd8 {[%clk 0:01:30]} 20. Nxd6 {[%clk 0:02:40]}  cxd6 {[%clk 0:01:30]} 21. Rd5 {[%clk 0:02:41]}  Rbc8 {[%clk 0:01:22]} 22. Red1 {[%clk 0:02:40]}  Rc6 {[%clk 0:01:22]} 23. g4 {[%clk 0:02:33]}  h5 {[%clk 0:01:18]} 24. h3 {[%clk 0:02:28]}  Rh8 {[%clk 0:01:16]} 25. c3 {[%clk 0:02:26]}  hxg4 {[%clk 0:01:15]} 26. hxg4 {[%clk 0:02:27]}  Rh3 {[%clk 0:01:14]} 27. R5d2 {[%clk 0:02:28]}  Rxf3 {[%clk 0:01:06]} 28. Rg1 {[%clk 0:02:24]}  Rf4 {[%clk 0:00:58]} 29. g5 {[%clk 0:02:24]}  f5 {[%clk 0:00:57]} 30. exf5+ {[%clk 0:02:22]}  Rxf5 {[%clk 0:00:57]} 31. g6 {[%clk 0:02:20]}  Nf6 {[%clk 0:00:55]} 32. Be3 {[%clk 0:02:19]}  Ne4 {[%clk 0:00:53]} 33. Rh2 {[%clk 0:02:19]}  Rf3 {[%clk 0:00:46]} 34. Bd2 {[%clk 0:02:17]}  d5 {[%clk 0:00:43]} 35. Rh7 {[%clk 0:02:14]}  Rc7 {[%clk 0:00:42]} 36. Bh6 {[%clk 0:02:07]}  Nf6 {[%clk 0:00:18]} 37. Bxg7 {[%clk 0:01:56]}  Nxh7 {[%clk 0:00:10]} 38. gxh7 {[%clk 0:01:57]}  Rxg7 {[%clk 0:00:09]} 39. Rxg7 {[%clk 0:01:58]}  Rh3 {[%clk 0:00:09]} 40. Rxb7 {[%clk 0:01:58]}  a5 {[%clk 0:00:10]} 41. Kd2 {[%clk 0:01:56]}  Kf5 {[%clk 0:00:09]} 42. b4 {[%clk 0:01:52]}  axb4 {[%clk 0:00:07]} 43. cxb4 {[%clk 0:01:52]}  Ke4 {[%clk 0:00:07]} 44. b5 {[%clk 0:01:50]}  Rh2+ {[%clk 0:00:07]} 45. Ke1 {[%clk 0:01:49]}  Ke3 {[%clk 0:00:08]} 46. Kf1 {[%clk 0:01:49]}  d4 {[%clk 0:00:08]} 47. b6 {[%clk 0:01:48]}  d3 {[%clk 0:00:08]} 48. Rd7 {[%clk 0:01:47]}  d2 {[%clk 0:00:07]} 49. b7 {[%clk 0:01:44]}  Rxh7 {[%clk 0:00:05]} 50. b8=Q {[%clk 0:01:38]}  Rxd7 {[%clk 0:00:05]} 51. Qxe5+ {[%clk 0:01:38]}  Kd3 {[%clk 0:00:04]} 52. Qf5+ {[%clk 0:01:35]}  Kc3 {[%clk 0:00:01]} 53. Qxd7 {[%clk 0:01:36]} 1-0


[Site "https://www.chess.com"]

[Event "Titled Tuesday Blitz May 23 Late 2023"]
[White "Rozman, Levy"]
[Black "Tomiello, Mateus Costamilan"]
[WhiteFideId "2039877"]
[BlackFideId "22701958"]
[WhiteElo "2376"]
[BlackElo "1990"]
[Result "1-0"]
[Round "09"]
[TimeControl "180+2"]
[Date "2023.05.23"]
[WhiteClock "0:01:50"]
[BlackClock "0:01:35"]

1. e4 {[%clk 0:02:59]}  e5 {[%clk 0:02:59]} 2. Nc3 {[%clk 0:02:59]}  Nf6 {[%clk 0:02:58]} 3. f4 {[%clk 0:02:58]}  d5 {[%clk 0:02:59]} 4. fxe5 {[%clk 0:02:58]}  Nxe4 {[%clk 0:02:59]} 5. Qf3 {[%clk 0:02:58]}  Nxc3 {[%clk 0:02:55]} 6. bxc3 {[%clk 0:02:58]}  Be7 {[%clk 0:02:52]} 7. d4 {[%clk 0:02:57]}  O-O {[%clk 0:02:51]} 8. Bd3 {[%clk 0:02:56]}  c5 {[%clk 0:02:50]} 9. Ne2 {[%clk 0:02:55]}  Nc6 {[%clk 0:02:44]} 10. O-O {[%clk 0:02:51]}  Be6 {[%clk 0:02:42]} 11. Be3 {[%clk 0:02:48]}  Qd7 {[%clk 0:02:34]} 12. Ng3 {[%clk 0:02:25]}  Rac8 {[%clk 0:02:15]} 13. Qh5 {[%clk 0:01:56]}  g6 {[%clk 0:02:13]} 14. Qh6 {[%clk 0:01:53]}  cxd4 {[%clk 0:01:35]} 15. Nh5 {[%clk 0:01:50]} 1-0


[Site "https://www.chess.com"]

[Event "Titled Tuesday Blitz May 23 Late 2023"]
[White "Potapova, Margarita"]
[Black "Hamitevici, Vladimir"]
[WhiteFideId "14126869"]
[BlackFideId "13902393"]
[WhiteElo "2244"]
[BlackElo "2401"]
[Result "1-0"]
[Round "09"]
[TimeControl "180+2"]
[Date "2023.05.23"]
[WhiteClock "0:00:26"]
[BlackClock "0:00:00"]

1. d4 {[%clk 0:02:57]}  Nf6 {[%clk 0:02:59]} 2. c4 {[%clk 0:02:55]}  b6 {[%clk 0:02:58]} 3. Nc3 {[%clk 0:02:55]}  Bb7 {[%clk 0:02:54]} 4. Qc2 {[%clk 0:02:55]}  d5 {[%clk 0:02:48]} 5. cxd5 {[%clk 0:02:55]}  Nxd5 {[%clk 0:02:49]} 6. Nf3 {[%clk 0:02:47]}  e6 {[%clk 0:02:46]} 7. e4 {[%clk 0:02:46]}  Nxc3 {[%clk 0:02:46]} 8. bxc3 {[%clk 0:02:47]}  Be7 {[%clk 0:02:44]} 9. Bd3 {[%clk 0:02:48]}  c5 {[%clk 0:02:42]} 10. O-O {[%clk 0:02:48]}  cxd4 {[%clk 0:02:42]} 11. cxd4 {[%clk 0:02:48]}  O-O {[%clk 0:02:42]} 12. Bb2 {[%clk 0:02:49]}  Nc6 {[%clk 0:02:35]} 13. Qe2 {[%clk 0:02:49]}  Rc8 {[%clk 0:02:17]} 14. a3 {[%clk 0:02:49]}  Bf6 {[%clk 0:02:09]} 15. e5 {[%clk 0:02:46]}  Be7 {[%clk 0:02:08]} 16. Rad1 {[%clk 0:02:39]}  Na5 {[%clk 0:02:05]} 17. Nd2 {[%clk 0:02:24]}  Qd5 {[%clk 0:01:39]} 18. Be4 {[%clk 0:02:11]}  Qa2 {[%clk 0:01:38]} 19. Bxb7 {[%clk 0:02:08]}  Nxb7 {[%clk 0:01:39]} 20. Ne4 {[%clk 0:01:51]}  Rfd8 {[%clk 0:01:11]} 21. Rd3 {[%clk 0:01:47]}  Qc4 {[%clk 0:00:45]} 22. Rfd1 {[%clk 0:01:36]}  h6 {[%clk 0:00:30]} 23. h4 {[%clk 0:01:18]}  Na5 {[%clk 0:00:24]} 24. Qg4 {[%clk 0:01:04]}  Kh8 {[%clk 0:00:21]} 25. Bc1 {[%clk 0:00:56]}  Rg8 {[%clk 0:00:14]} 26. Ng5 {[%clk 0:00:52]}  Rcf8 {[%clk 0:00:08]} 27. Qh5 {[%clk 0:00:50]}  Bxg5 {[%clk 0:00:06]} 28. hxg5 {[%clk 0:00:50]}  Nb3 {[%clk 0:00:07]} 29. Bf4 {[%clk 0:00:39]}  Kh7 {[%clk 0:00:06]} 30. Rg3 {[%clk 0:00:28]}  Qc2 {[%clk 0:00:00]} 31. Rdd3 {[%clk 0:00:26]} 1-0


[Site "https://www.chess.com"]

[Event "Titled Tuesday Blitz May 23 Late 2023"]
[White "Domingo Nunez, Ruben"]
[Black "Ollier, Pablo"]
[WhiteFideId "22245570"]
[BlackFideId "652318"]
[WhiteElo "2404"]
[BlackElo "2573"]
[Result "1-0"]
[Round "09"]
[TimeControl "180+2"]
[Date "2023.05.23"]
[WhiteClock "0:00:42"]
[BlackClock "0:00:02"]

1. c4 {[%clk 0:02:57]}  c5 {[%clk 0:03:00]} 2. Nc3 {[%clk 0:02:57]}  Nc6 {[%clk 0:03:00]} 3. g3 {[%clk 0:02:58]}  g6 {[%clk 0:03:00]} 4. Bg2 {[%clk 0:02:58]}  Bg7 {[%clk 0:03:01]} 5. Nf3 {[%clk 0:02:59]}  e5 {[%clk 0:03:01]} 6. O-O {[%clk 0:03:00]}  Nge7 {[%clk 0:03:02]} 7. Ne1 {[%clk 0:03:00]}  O-O {[%clk 0:03:01]} 8. Nc2 {[%clk 0:03:00]}  a6 {[%clk 0:03:02]} 9. Ne3 {[%clk 0:03:01]}  Rb8 {[%clk 0:03:02]} 10. a4 {[%clk 0:03:01]}  Nb4 {[%clk 0:02:55]} 11. d3 {[%clk 0:03:00]}  d6 {[%clk 0:02:52]} 12. Bd2 {[%clk 0:03:00]}  Be6 {[%clk 0:02:47]} 13. Ncd5 {[%clk 0:02:56]}  Nbxd5 {[%clk 0:02:41]} 14. cxd5 {[%clk 0:02:57]}  Bd7 {[%clk 0:02:38]} 15. Nc4 {[%clk 0:02:56]}  Qc7 {[%clk 0:02:27]} 16. a5 {[%clk 0:02:50]}  f5 {[%clk 0:02:19]} 17. b4 {[%clk 0:02:50]}  e4 {[%clk 0:02:00]} 18. dxe4 {[%clk 0:02:47]}  Bxa1 {[%clk 0:02:00]} 19. Qxa1 {[%clk 0:02:48]}  Bb5 {[%clk 0:01:46]} 20. Bh6 {[%clk 0:02:38]}  Rf7 {[%clk 0:01:43]} 21. Nxd6 {[%clk 0:02:38]}  Qxd6 {[%clk 0:01:35]} 22. e5 {[%clk 0:02:39]}  Qc7 {[%clk 0:01:11]} 23. e6 {[%clk 0:02:38]}  Nc8 {[%clk 0:01:12]} 24. Bf4 {[%clk 0:00:49]}  Nd6 {[%clk 0:00:59]} 25. bxc5 {[%clk 0:00:48]}  Qxc5 {[%clk 0:00:46]} 26. Rc1 {[%clk 0:00:43]}  Qb4 {[%clk 0:00:02]} 27. exf7+ {[%clk 0:00:42]} 1-0


[Site "https://www.chess.com"]

[Event "Titled Tuesday Blitz May 23 Late 2023"]
[White "Sivakumar, Shaaketh"]
[Black "Schnaider, Ilan"]
[WhiteFideId "30940176"]
[BlackFideId "169013"]
[WhiteElo "2174"]
[BlackElo "2224"]
[Result "1-0"]
[Round "09"]
[TimeControl "180+2"]
[Date "2023.05.23"]
[WhiteClock "0:00:18"]
[BlackClock "0:00:00"]

1. e4 {[%clk 0:03:00]}  c6 {[%clk 0:02:59]} 2. d4 {[%clk 0:02:55]}  d5 {[%clk 0:03:00]} 3. e5 {[%clk 0:02:47]}  c5 {[%clk 0:03:00]} 4. dxc5 {[%clk 0:02:46]}  Nc6 {[%clk 0:03:01]} 5. a3 {[%clk 0:02:46]}  e6 {[%clk 0:02:51]} 6. b4 {[%clk 0:02:45]}  Nxe5 {[%clk 0:02:51]} 7. Bb2 {[%clk 0:02:45]}  Ng6 {[%clk 0:02:50]} 8. Nf3 {[%clk 0:02:45]}  Nf6 {[%clk 0:02:50]} 9. Nbd2 {[%clk 0:02:43]}  Be7 {[%clk 0:02:49]} 10. h4 {[%clk 0:02:42]}  O-O {[%clk 0:02:40]} 11. h5 {[%clk 0:02:41]}  Nf4 {[%clk 0:02:34]} 12. h6 {[%clk 0:02:41]}  Re8 {[%clk 0:01:43]} 13. hxg7 {[%clk 0:02:41]}  b6 {[%clk 0:01:21]} 14. g3 {[%clk 0:02:24]}  Ng6 {[%clk 0:01:21]} 15. Ng5 {[%clk 0:02:15]}  bxc5 {[%clk 0:01:05]} 16. Nxh7 {[%clk 0:02:14]}  d4 {[%clk 0:00:29]} 17. Nxf6+ {[%clk 0:01:31]}  Bxf6 {[%clk 0:00:30]} 18. Qh5 {[%clk 0:01:30]}  Bxg7 {[%clk 0:00:30]} 19. Bd3 {[%clk 0:01:25]}  Bb7 {[%clk 0:00:20]} 20. Rh3 {[%clk 0:00:57]}  Ne5 {[%clk 0:00:12]} 21. Bb5 {[%clk 0:00:52]}  Bc6 {[%clk 0:00:09]} 22. Bxc6 {[%clk 0:00:50]}  Nxc6 {[%clk 0:00:10]} 23. Qxc5 {[%clk 0:00:47]}  Rc8 {[%clk 0:00:09]} 24. Qh5 {[%clk 0:00:48]}  Qf6 {[%clk 0:00:07]} 25. Ne4 {[%clk 0:00:45]}  Qe5 {[%clk 0:00:07]} 26. Qh7+ {[%clk 0:00:46]}  Kf8 {[%clk 0:00:07]} 27. O-O-O {[%clk 0:00:44]}  Qf5 {[%clk 0:00:04]} 28. Qxf5 {[%clk 0:00:43]}  exf5 {[%clk 0:00:05]} 29. Nd6 {[%clk 0:00:44]}  Rcd8 {[%clk 0:00:02]} 30. Nxe8 {[%clk 0:00:44]}  Rxe8 {[%clk 0:00:03]} 31. Kd2 {[%clk 0:00:41]}  Bf6 {[%clk 0:00:02]} 32. f4 {[%clk 0:00:41]}  Bg7 {[%clk 0:00:01]} 33. Re1 {[%clk 0:00:41]}  Rd8 {[%clk 0:00:01]} 34. Rh5 {[%clk 0:00:37]}  Ne7 {[%clk 0:00:01]} 35. Rxe7 {[%clk 0:00:34]}  Kxe7 {[%clk 0:00:02]} 36. Rxf5 {[%clk 0:00:34]}  Rc8 {[%clk 0:00:02]} 37. Rc5 {[%clk 0:00:31]}  Rh8 {[%clk 0:00:02]} 38. Rc7+ {[%clk 0:00:30]}  Ke6 {[%clk 0:00:01]} 39. Rxa7 {[%clk 0:00:29]}  Rh2+ {[%clk 0:00:02]} 40. Kd3 {[%clk 0:00:28]}  Rh3 {[%clk 0:00:03]} 41. f5+ {[%clk 0:00:29]}  Kxf5 {[%clk 0:00:02]} 42. Rxf7+ {[%clk 0:00:28]}  Kg6 {[%clk 0:00:03]} 43. Rf3 {[%clk 0:00:27]}  Rh1 {[%clk 0:00:03]} 44. b5 {[%clk 0:00:25]}  Rb1 {[%clk 0:00:03]} 45. Bxd4 {[%clk 0:00:20]}  Rd1+ {[%clk 0:00:03]} 46. Kc4 {[%clk 0:00:21]}  Rxd4+ {[%clk 0:00:02]} 47. Kc5 {[%clk 0:00:20]}  Rd2 {[%clk 0:00:03]} 48. c4 {[%clk 0:00:21]}  Bd4+ {[%clk 0:00:01]} 49. Kc6 {[%clk 0:00:20]}  Rc2 {[%clk 0:00:02]} 50. Kd5 {[%clk 0:00:21]}  Bg1 {[%clk 0:00:02]} 51. Rf4 {[%clk 0:00:20]}  Kg5 {[%clk 0:00:00]} 52. Kc6 {[%clk 0:00:18]} 1-0


[Site "https://www.chess.com"]